Cogmind - Beta 15 @@@ ROGUE MODE // 2025.05.13 @ 23:52:57 Player: Zaros426 Result: Destroyed by B-99 Colossus with Linear Accelerator Performance ------------- Evolutions (9) 4500 Regions Visited (20) 4000 Robots Destroyed (424) 2120 Value Destroyed (19167) 19167 Prototype IDs (81) 1620 Alien Tech Used (0) 0 Bonus (9764) 9764 TOTAL SCORE: 41171 Bonus ------- Triggered High Security 500 High Alert Combat Kills 4009 Follower Combat Kills 2192 Entered DSFs 500 Network Hubs Disabled 400 Aligned with FarCom 300 Met R17 at Cetus 500 Met R17 at Research 2000 Friendly Fire -637 Cogmind --------- Core Integrity 0/1600 Matter 300/300 Energy 20/100 System Corruption 29% Temperature Cool (0) Movement Core (1350) Ox26 Location -1/Access Parts ------- > --- POWER (3) -------- (None) > --- PROPULSION (6) --- Combat Linear Gravjet > --- UTILITY (12) ----- Huge Storage Unit Advanced Signal Interpreter Advanced Terrain Scan Processor Advanced Targeting Computer Core Analyzer Graphene Brace > --- WEAPON (4) ------- (None) > --- INVENTORY (25) --- Advanced Force Field Trap Reconfigurator Enhanced Quantum Rifle Proton Burst Cannon Improved Matter Neutralizer Railgun Linear Accelerator Enhanced Hardcell Cannon Enhanced Hardcell Cannon Gamma Bomb Array Tiamat Missile Launcher Peak State ------------ > --- POWER ------------ Micro Antimatter Reactor Compact Particle Reactor Light Quantum Reactor > --- PROPULSION ------- Improved Heavy Siege Treads Improved Heavy Siege Treads Improved Heavy Siege Treads > --- UTILITY ---------- Coolant Network Huge Storage Unit Experimental Energy Well Long-range Sensor Array Advanced Signal Interpreter Advanced Targeting Computer Advanced Transmission Jammer Graphene Brace Experimental Hardlight Generator Ghost Barrier Mini Drone Bay > --- WEAPON ----------- Nova Cannon Nova Cannon Enhanced Nova Cannon Linear Accelerator > --- INVENTORY -------- Improved Heavy Siege Treads Improved Heavy Siege Treads Improved Heavy Siege Treads Biometal Heavy Treads Experimental Energy Well Matter Compressor Advanced Force Field Advanced Force Field Trap Reconfigurator Drone Bay Tachyon Dispersion Ray Proton Burst Cannon Improved Matter Neutralizer Null Cannon Advanced KE Penetrator Linear Accelerator Enhanced Hardcell Cannon Perforator Gamma Bomb Array Gamma Bomb Array [Rating: 210] Favorites ----------- Power Quantum Reactor Engine Cooled Ion Engine Power Core Light Nuclear Core Reactor Quantum Reactor Propulsion Armored Treads Treads Armored Treads Leg Flexi-carbon Leg Wheel Compact Wheel Hover Unit Combat Linear Gravjet Flight Unit Improved Flight Unit Utility Huge Storage Unit Device Advanced Transmission Jammer Storage Huge Storage Unit Processor Advanced Terrain Scan Processor Hackware Ghost Barrier Protection Centrium Medium Armor Plating Weapon Enhanced Autogun Energy Gun Variable Charge Gun Energy Cannon Nova Cannon Ballistic Gun Enhanced Autogun Ballistic Cannon Linear Accelerator Launcher Gamma Bomb Array Special Weapon Mining Laser Impact Weapon Great Maul Slashing Weapon Dual-blade Saw Piercing Weapon Spear Build | -11 -10 -10 -10 -9 -8 -8 -8 -8 -6 -6 -6 -6 -6 -5 -4 -4 -3 -3 -2 -1 ------- Run | Yrd Mat Min Exi Min Mat Sto Rec Scr Fac Ext Cet Arc Hub Fac Fac DSF Res Tes Res Acc Slots Evolved 18 | . . . . . 4 . . . 4 . . . . 2 2 . 2 . 2 2 Power 2 | . . . . . . . . . . . . . . 1 . . . . 1 . Propulsion 4 | . . . . . 1 . . . 1 . . . . . . . 2 . . . Utility 10 | . . . . . 2 . . . 3 . . . . 1 2 . . . 1 1 Weapon 2 | . . . . . 1 . . . . . . . . . . . . . . 1 Parts Attached 311 | 7 13 5 1 2 38 21 1 12 20 12 12 1 9 28 1 18 23 21 8 58 Power 43 | 1 . 1 . 1 4 4 . 1 1 1 2 . 2 2 . 2 3 3 2 13 Engine 16 | 1 . 1 . 1 2 3 . . 1 1 . . 1 1 . 2 . . . 2 Core 4 | . . . . . 2 . . 1 . . . . . 1 . . . . . . Reactor 23 | . . . . . . 1 . . . . 2 . 1 . . . 3 3 2 11 Propulsion 61 | 2 5 1 . . 6 3 . 3 6 2 2 . 1 6 . 2 5 2 . 15 Treads 39 | 2 3 . . . 4 1 . 3 4 2 2 . 1 . . 2 5 . . 10 Leg 4 | . . . . . . . . . . . . . . 3 . . . 1 . . Wheel 12 | . 2 1 . . . . . . 2 . . . . 3 . . . . . 4 Hover 4 | . . . . . 1 2 . . . . . . . . . . . . . 1 Flight 2 | . . . . . 1 . . . . . . . . . . . . 1 . . Utility 112 | 2 3 2 1 1 10 2 . 3 9 7 4 1 5 14 1 9 10 7 5 16 Device 68 | 1 . 1 1 1 5 1 . 1 7 3 1 1 2 10 1 8 5 6 3 10 Storage 15 | 1 3 . . . . . . 1 1 . . . 2 1 . 1 2 1 1 1 Processor 11 | . . . . . . . . 1 1 . . . . 3 . . 2 . . 4 Hackware 3 | . . . . . 2 . . . . . . . . . . . . . 1 . Protection 15 | . . 1 . . 3 1 . . . 4 3 . 1 . . . 1 . . 1 Artifact . | . . . . . . . . . . . . . . . . . . . . . Weapon 95 | 2 5 1 . . 18 12 1 5 4 2 4 . 1 6 . 5 5 9 1 14 Energy Gun 17 | 1 . . . . 4 2 . . . . 1 . . 3 . . . 2 . 4 Energy Cannon 25 | . 2 . . . 8 1 . . 1 1 . . . . . 3 2 3 1 3 Ballistic Gun 25 | 1 1 . . . 1 9 1 2 2 1 3 . . 1 . . . . . 3 Ballistic Cannon 10 | . . . . . 1 . . 1 . . . . . 2 . . 2 2 . 2 Launcher 11 | . 1 1 . . 3 . . . . . . . 1 . . 1 1 2 . 1 Special Weapon 3 | . 1 . . . . . . 2 . . . . . . . . . . . . Impact Weapon 2 | . . . . . 1 . . . . . . . . . . . . . . 1 Slashing Weapon 1 | . . . . . . . . . . . . . . . . 1 . . . . Piercing Weapon 1 | . . . . . . . . . 1 . . . . . . . . . . . Special Melee Weapon . | . . . . . . . . . . . . . . . . . . . . . Unidentified Prototypes 51 | . . . . . 8 9 . . . . 4 . 1 3 . . 2 15 2 7 Parts Lost 122 | . . 5 . 2 4 . . 16 . 1 1 . 12 21 . . . 2 3 55 Power 20 | . . 1 . 1 1 . . 1 . . . . 1 4 . . . 1 1 9 Propulsion 31 | . . 3 . 1 . . . 4 . . 1 . 2 5 . . . . . 15 Utility 37 | . . 1 . . 2 . . 4 . . . . 6 9 . . . 1 . 14 Weapon 34 | . . . . . 1 . . 7 . 1 . . 3 3 . . . . 2 17 Highest Loss Streak 16 | . . 3 . 2 2 . . 9 . 1 1 . 7 13 . . . 2 1 16 To Critical Strikes 5 | . . 1 . . . . . 3 . . 1 . . . . . . . . . Average Backups 15 | 3 13 18 19 19 19 19 20 19 7 9 9 9 8 6 4 8 12 17 20 21 Power . | . . . . . . . . . . . 1 1 1 . . . . . . . Propulsion 2 | 1 3 1 2 1 4 4 4 3 1 2 2 . . . . 2 3 3 3 2 Utility 6 | 1 6 9 11 12 9 5 5 5 2 3 3 5 4 2 2 1 3 6 7 6 Weapon 6 | . 3 8 5 5 4 9 9 8 2 2 2 2 1 2 1 4 5 7 10 12 Tool/Special . | . . . . . . . . . . . . . . . . . . . . . Unused Backups 47 | . 5 2 . . 8 6 . 1 1 3 1 1 4 2 . 1 1 4 1 6 Power 3 | . . . . . 1 1 . . . . 1 . . . . . . . . . Propulsion 4 | . . . . . 1 . . . 1 . . 1 . . . . . 1 . . Utility 23 | . 2 1 . . 4 4 . 1 . 3 . . 3 1 . . . 2 . 2 Weapon 17 | . 3 1 . . 2 1 . . . . . . 1 1 . 1 1 1 1 4 Tool/Special . | . . . . . . . . . . . . . . . . . . . . . Average Slot Usage (%) 88 | . 100 95 99 93 98 99 97 97 85 98 92 85 82 55 17 65 80 80 82 78 Engine 5 | . 14 13 14 8 7 8 9 8 5 6 1 . . 3 . 7 . . . . Reactor 3 | . . . . . . . . . . . 4 6 5 1 . . 8 8 11 9 Treads 18 | . 20 25 . 12 26 26 27 26 24 21 19 13 12 3 . 7 13 13 13 11 Wheel 1 | . 7 2 28 15 . . . . 1 4 . . . . . . . . . 2 Device 14 | . 14 . 9 14 12 18 18 17 21 10 12 6 8 12 6 20 23 23 24 18 Storage 8 | . 14 14 14 14 9 9 9 9 4 6 6 6 5 5 . 5 4 4 7 7 Processor 5 | . . . . . . . . . 8 13 13 13 12 10 10 10 8 9 8 11 Hackware 1 | . . . . . 7 . . . . . . . . . . . . . 3 3 Protection 7 | . . 10 4 . 6 9 9 8 . 14 13 19 16 . . . 3 3 . . Energy Cannon 6 | . 3 14 23 27 18 1 . . . 2 7 . . . . 10 12 10 9 4 Ballistic Gun 11 | . 15 10 4 . 2 21 24 26 18 17 9 20 17 . . . . . . 1 Ballistic Cannon 1 | . . . . . 3 . . . . . . . . 3 . . . 2 2 5 Peak Build Rating 210 | 7 12 13 21 21 45 57 57 63 61 65 116 117 117 88 28 126 155 172 192 210 Average Rating 85 | 6 8 12 18 19 39 46 55 55 49 56 87 116 111 63 19 90 150 157 183 186 On Entrance 61 | . 7 12 13 21 21 44 57 57 7 55 63 116 117 34 11 28 126 154 167 185 Naked Turns . | . . . . . . . . . . . . . . . . . . . . . Heaviest Build 215 | 15 94 94 94 93 122 118 105 110 45 62 76 76 140 137 3 100 144 184 181 215 Greatest Support 225 | 40 40 40 32 40 60 60 60 60 80 90 160 160 160 80 3 150 225 225 225 225 Greatest Overweight (x) 35 | . 2 5 2 5 6 2 1 1 2 1 1 25 . 35 . 2 . 1 1 6 Average Overweight (x) 1 | . . 2 2 2 1 1 1 . . . . 12 . . . . . . . 1 Largest Inventory Capacity 25 | 8 25 25 25 25 25 25 25 25 10 10 10 10 25 25 5 15 20 25 25 25 Average Capacity 20 | 7 17 25 25 25 25 25 25 24 8 10 10 10 12 16 5 12 15 21 25 25 Most Carried 25 | 6 21 25 25 25 25 25 25 25 10 10 10 10 10 10 5 15 19 25 25 25 Average Carried 18 | 4 13 22 24 24 24 24 24 24 7 9 9 9 9 6 4 11 15 20 24 22 Final Capacity 25 | 8 25 25 25 25 25 25 25 5 10 10 10 10 5 5 5 15 20 25 25 25 Final Carried 25 | 6 21 25 25 24 25 25 25 5 10 10 9 10 5 5 4 15 18 25 25 11 Class Distribution -------------------- 29% | Scavenger-Tank 19% | Mutant 16% | Commander-Tank 9% | Skirmisher 8% | Hacker-Tank 4% | Tank 3% | Commander-Mutant Dominant Class ---------------- Mutant | -10/Materials Mutant | -10/Mines Mutant | -10/Exiles Mutant | -9/Mines Skirmisher | -8/Materials Commander-Tank | -8/Storage Commander-Tank | -8/Recycling Commander-Tank | -8/Scraptown Gunner | -6/Factory Scavenger-Tank | -6/Extension Scavenger-Tank | -6/Cetus Scavenger-Tank | -6/Archives Scavenger-Tank | -6/Hub_04(d) Tank | -5/Factory Mutant | -4/Factory Tank | -4/DSF Scavenger-Tank | -3/Research Scavenger-Tank | -3/Testing Hacker-Tank | -2/Research Hacker-Tank | -1/Access Resources | -11 -10 -10 -10 -9 -8 -8 -8 -8 -6 -6 -6 -6 -6 -5 -4 -4 -3 -3 -2 -1 ----------- Run | Yrd Mat Min Exi Min Mat Sto Rec Scr Fac Ext Cet Arc Hub Fac Fac DSF Res Tes Res Acc Matter Collected 15153 | 354 317 302 . 80 849 791 282 815 460 1039 306 236 1002 889 . 507 381 962 420 5161 Remotely 182 | . . . . . . . . . . . . . . 162 . 20 . . . . Salvage Created 23439 | 221 406 198 . 203 1932 691 697 1471 694 892 167 418 2881 667 . 540 1267 1301 1017 7776 Parts 1125 | 24 33 4 . 15 126 46 28 93 32 39 5 32 123 34 . 17 32 69 81 292 Haulers Intercepted 24 | . 2 . . . 6 6 . . . . . . 3 . . . 4 1 . 2 Recyclers Shooed 19 | 1 . . . . 5 . 2 . 5 4 . . 1 . . . . . . 1 Parts Field Recycled . | . . . . . . . . . . . . . . . . . . . . . Retrieved Matter . | . . . . . . . . . . . . . . . . . . . . . Parts Self-Destructed . | . . . . . . . . . . . . . . . . . . . . . Prevented . | . . . . . . . . . . . . . . . . . . . . . Kills | -11 -10 -10 -10 -9 -8 -8 -8 -8 -6 -6 -6 -6 -6 -5 -4 -4 -3 -3 -2 -1 ------- Run | Yrd Mat Min Exi Min Mat Sto Rec Scr Fac Ext Cet Arc Hub Fac Fac DSF Res Tes Res Acc Combat Hostiles Destroyed 291 | . 10 15 . 3 32 6 2 21 5 6 2 3 30 12 . 4 12 17 15 96 Melee 1 | . . . . . . . . . . . . . 1 . . . . . . . Guns 87 | . 7 . . . 2 6 2 17 5 6 1 3 28 7 . . . . . 3 Cannons 130 | . . 8 . 3 25 . . . . . 1 . . 5 . 4 8 11 15 50 AOE 34 | . 3 6 . . 5 . . 4 . . . . . . . . 2 1 . 13 Classes Destroyed 30 | 3 7 2 . . 3 1 . 6 1 1 . . 3 . . . 2 . . 1 Worker 26 | 2 1 1 . 3 2 4 . . . . . . 8 . . . . 1 1 3 Builder 23 | . 1 1 . 1 5 2 2 . 1 1 . . 2 2 . . . . 1 4 Tunneler 12 | 8 . . . 1 . . . . 1 . . . 1 . . . . . . 1 Hauler 24 | . 2 . . . 6 6 . . . . . . 3 . . . 4 1 . 2 Recycler 27 | 1 1 . . . 4 . 6 . 3 3 . . 4 1 . . 1 . . 3 Carrier 1 | . . . . . . . . . . . . . . . . . 1 . . . Mechanic 4 | . 1 . . . 1 . . . . . . . . . . . . 1 . 1 Operator 9 | . 1 . . . . . . . . 1 . 5 1 . . . 1 . . . Watcher 21 | . 3 . . . 4 1 . . . 1 1 . 3 1 . . . 2 . 5 Swarmer 37 | . 9 . . . 10 2 . . . . . . . . . 2 4 . . 10 Cutter 2 | . . . . . . . . . . . . . 2 . . . . . . . Saboteur 3 | . . . . . . . . . . . . . 1 . . . . . . 2 Grunt 82 | . 1 . . 2 14 1 . . 2 1 . . 13 3 . . 3 5 . 37 Brawler 6 | . . . . . 1 . . . . . . . 1 . . . . . . 4 Duelist 5 | . . . . . 1 . . . 1 . . . . 1 . . . . . 2 Protector 2 | . . . . . . . . . . . . . . . . . . . . 2 Sentry 29 | . . . . . 6 1 2 . 1 3 . 3 5 1 . . 1 . 1 5 Demolisher 2 | . . 1 . . . . . . . . . . . . . . 1 . . . Specialist 5 | . . . . . . . . . . . . . 2 . . . . 3 . . Hunter 21 | . . . . . . 1 . . . 1 . . 3 3 . . . . 2 11 Programmer 53 | . . . . . . . . . 1 . . . 3 4 . 2 . 8 12 23 Behemoth 1 | . . . . . . . . . . 1 . . . . . . . . . . Cetus Guard 2 | . . . . . . . . . . . 2 . . . . . . . . . Striker 3 | . . . . . . . . . . . . . . . . . 3 . . . Protovariant L 1 | . . . . . . . . . . . . . . . . . . 1 . . Bolteater 1 | . . . . . . . . 1 . . . . . . . . . . . . Federalist 2 | . . . . . . . . 2 . . . . . . . . . . . . Explorer 1 | . . . . . . . . 1 . . . . . . . . . . . . Guru 2 | . . . . . . . . 2 . . . . . . . . . . . . Scrapper 5 | . . . . . . . . 5 . . . . . . . . . . . . Elite 9 | . . . . . . . . 9 . . . . . . . . . . . . Assembled 14 | . . 14 . . . . . . . . . . . . . . . . . . Savage 1 | . . . . . . . . 1 . . . . . . . . . . . . Best Kill Streak 13 | 3 3 6 . 2 13 2 2 7 6 3 3 3 9 4 . 2 4 7 7 9 Combat Bots Only 9 | . 3 6 . 1 5 2 1 7 3 2 2 1 5 3 . 2 4 5 7 9 Max Kills in Single Turn 4 | 1 3 3 . 2 3 2 2 2 1 1 1 1 3 1 . 1 2 3 2 4 Gunslinging 1 | . . . . . . . . 1 . . . . . . . . . . . . Exploded 4 | . 3 2 . . 3 . . 1 . . . . . . . . 2 1 . 4 Melee 1 | . . . . . . . . . . . . . 1 . . . . . . . Uniques/NPCs Destroyed 2 | . . . . 1 . 1 . . . . . . . . . . . . . . YI-UF0 (-9/Mines) 01-MTF (-8/Storage) Combat | -11 -10 -10 -10 -9 -8 -8 -8 -8 -6 -6 -6 -6 -6 -5 -4 -4 -3 -3 -2 -1 -------- Run | Yrd Mat Min Exi Min Mat Sto Rec Scr Fac Ext Cet Arc Hub Fac Fac DSF Res Tes Res Acc Hostile Shots Fired 2898 | . 48 16 . 18 118 26 4 335 49 241 50 10 352 213 . 11 58 204 97 1048 Missed 817 | . 11 2 . 3 28 11 1 102 15 94 16 3 86 51 . 5 19 45 27 298 Hits 2081 | . 37 14 . 15 90 15 3 233 34 147 34 7 266 162 . 6 39 159 70 750 Melee 56 | . . 3 . . 2 . . 24 4 . . . 2 7 . . 1 9 . 4 Projectile 2025 | . 37 11 . 15 88 15 3 209 30 147 34 7 264 155 . 6 38 150 70 746 AOE 19 | . . 5 . 12 . . . . . . . . . . . . . . . 2 Critical Strikes 97 | . . 1 . . 2 . . 13 1 . 3 . 13 10 . . . 10 6 38 Actively Blocked 52 | . . . . . . . . . . . . . . . . . . 10 6 36 Part Disruptions 10 | . . 1 . . . . . . 1 . . . . 2 . . 1 2 2 1 Damage Taken 33972 | . 388 374 . 369 1222 209 37 3729 487 1223 863 115 3800 3283 . 116 832 1574 940 14411 Core 3867 | . 133 34 . 72 41 . . 438 63 76 26 . 329 791 . 18 66 130 47 1603 Absorbed by Shields 6886 | . . . . . . . . . . 76 146 121 729 168 . . 296 1477 783 3090 Reduced by Siege Mode 1735 | . . . . . . . . . . . . 10 95 112 . 11 38 93 127 1249 Ignored by Resistances 177 | . . . . . . . 5 172 . . . . . . . . . . . . Regen/Repaired (Parts) 306 | . . . . . 220 . . . . . . . . 86 . . . . . . Core Remaining (%) 56 | 100 . . . 4 . . . 12 . . . . 41 20 . 98 . 84 96 . Volleys Fired 1051 | 28 66 29 . 23 112 36 18 56 28 60 17 18 96 72 . 8 57 80 37 210 Largest 4 | 2 2 2 . 2 3 3 3 3 3 3 3 3 3 3 . 3 3 3 3 4 Hottest 476 | 70 136 136 . 136 204 75 75 100 80 90 240 105 240 240 . 339 339 339 356 476 Shots Fired 2384 | 56 100 55 . 42 269 90 56 156 84 176 36 54 239 127 . 20 141 157 77 449 Gun 1194 | 56 62 16 . . 24 90 56 151 84 175 15 54 238 75 . . . . . 98 Cannon 1087 | . 8 31 . 38 239 . . . . 1 19 . . 52 . 19 140 154 77 309 Launcher 66 | . 3 8 . . 6 . . 3 . . . . . . . . 1 3 . 42 Special 37 | . 27 . . 4 . . . 2 . . 2 . 1 . . 1 . . . . Kinetic 1376 | 28 42 16 . . 71 87 56 140 84 175 14 54 228 52 . . 17 46 10 256 Thermal 914 | 28 55 31 . 42 192 . . . . 1 20 . 10 75 . 19 123 108 67 143 Explosive 17 | . 3 8 . . 4 . . . . . . . . . . . . . . 2 Electromagnetic 71 | . . . . . 2 3 . 14 . . . . . . . . 1 3 . 48 Robot Hit Streak 32 | 5 11 7 . 11 15 8 7 16 15 18 6 9 29 12 . 8 17 21 11 32 Robot Miss Streak 12 | 2 3 4 . 3 5 6 3 4 3 5 4 4 3 3 . 3 3 3 3 12 Penetration Max 1 | . . . . . . . . . . 1 1 1 1 . . . . . . 1 Secondary Targets 15 | . 3 . . . . . . 7 . . . . 5 . . . . . . . Max Gunslinging Chain 1 | . 1 . . . . . . 1 . . . . 1 . . . . . . . Shots Hit Robots 1442 | 34 43 31 . 23 135 50 33 115 60 117 21 33 160 78 . 26 64 75 44 300 Core Hits 855 | 12 28 21 . 10 71 27 14 50 25 34 6 16 85 30 . 12 38 44 25 307 Critical Kills 55 | . . . . . 1 . 1 . 1 . 1 3 17 . . . 3 2 4 22 Critical Parts Destroyed 78 | . . 1 . . 1 . . . 1 1 1 4 22 . . . . . 3 44 Critical Strikes 175 | 2 3 1 . . 2 . 1 2 2 2 4 7 39 7 . 8 3 3 8 81 Burn 5 | 2 3 . . . . . . . . . . . . . . . . . . . Meltdown 9 | . . . . . 1 . . . . . . . . . . . 3 2 . 3 Destroy 135 | . . 1 . . 1 . 1 . 2 2 4 7 39 . . . . . 7 71 Blast 16 | . . . . . . . . . . . . . . 7 . . . 1 1 7 Corrupt 2 | . . . . . . . . 2 . . . . . . . . . . . . Sever 8 | . . . . . . . . . . . . . . . . 8 . . . . Melee Attacks 36 | . . . . . 1 16 . . 5 . . . . . . 14 . . . . Impact 17 | . . . . . 1 16 . . . . . . . . . . . . . . Slashing 14 | . . . . . . . . . . . . . . . . 14 . . . . Piercing 5 | . . . . . . . . . 5 . . . . . . . . . . . Sneak Attacks 1 | . . . . . . 1 . . . . . . . . . . . . . . Combat Hostiles . | . . . . . . . . . . . . . . . . . . . . . Follow-up Attacks . | . . . . . . . . . . . . . . . . . . . . . Damage Inflicted 51462 | 430 776 1134 . 494 3842 960 602 2442 1166 2385 658 954 6419 2308 . 1274 3039 3854 2220 16505 Guns 17978 | 430 488 102 . . 230 865 602 2089 1166 2385 254 954 5036 1337 . . . . . 2040 Cannons 22295 | . 103 469 . 494 3146 . . . . . 404 . . 950 . 593 2706 3188 2220 8022 Explosions 10344 | . 185 563 . . 461 . . 353 . . . . 1340 . . . 333 666 . 6443 Melee 776 | . . . . . . 95 . . . . . . . . . 681 . . . . Ramming 69 | . . . . . 5 . . . . . . . 43 21 . . . . . . Kinetic 23333 | 214 323 102 . . 855 841 602 1736 1166 2385 254 954 4979 950 . . 454 1349 222 5947 Thermal 16969 | 216 268 469 . 494 2620 . . 120 . . 404 . 57 1337 . 593 2252 1839 1998 4302 Explosive 1392 | . 185 563 . . 127 . . . . . . . . . . . . . . 517 Electromagnetic 8923 | . . . . . 235 24 . 586 . . . . 1340 . . . 333 666 . 5739 Impact 95 | . . . . . . 95 . . . . . . . . . . . . . . Slashing 681 | . . . . . . . . . . . . . . . . 681 . . . . Piercing . | . . . . . . . . . . . . . . . . . . . . . Highest Corruption 35 | . . . . . 2 2 2 4 1 2 2 2 12 35 . 1 1 11 16 29 Average Corruption 5 | . . . . . 2 2 2 3 1 1 2 1 2 14 . 1 1 3 7 11 Corruption Purged 7 | . . . . . . . . . . . . 2 5 . . . . . . . Corruption Blocked 19 | . . . . . . . . . . . . . . . . . . . . 19 Effects 352 | . . . . . 7 37 23 . 3 23 4 1 8 45 . 1 4 36 8 152 Message Errors 89 | . . . . . 1 12 3 . . 10 1 1 2 13 . . 1 9 1 35 Matter Fused 73 | . . . . . 2 11 5 . . 7 . . 2 7 . . 1 5 1 32 Heat Flow Errors 42 | . . . . . . 2 3 . 2 1 . . . 7 . . 1 6 2 18 Energy Discharges 44 | . . . . . 1 5 2 . 1 2 1 . . 3 . . 1 7 . 21 Parts Rejected 7 | . . . . . . . . . . 2 1 . 1 1 . . . . . 2 Parts Fused 4 | . . . . . . . 1 . . . . . . . . . . 1 . 2 Data Loss (minor) 36 | . . . . . 2 4 4 . . . 1 . 1 3 . . . 3 1 17 Data Loss (major) 24 | . . . . . . 1 2 . . 1 . . 1 3 . . . 3 1 12 Misfires 11 | . . . . . . 1 2 . . . . . 1 2 . 1 . 1 1 2 Alerts 7 | . . . . . 1 1 1 . . . . . . 1 . . . . 1 2 Misdirections 3 | . . . . . . . . . . . . . . 3 . . . . . . Weapon Failures 12 | . . . . . . . . . . . . . . 2 . . . 1 . 9 Overload Shots 16 | . . . . . . . . . . . 1 . 5 7 . . . . . 3 Effects 1 | . . . . . . . . . . . . . . 1 . . . . . . Heat Surge 1 | . . . . . . . . . . . . . . 1 . . . . . . Overflow Damage 922 | . . 5 . 2 98 . . . . . . . 8 28 . 30 21 206 74 450 Projectiles 807 | . . 2 . 2 54 . . . . . . . . 28 . 16 21 206 74 404 Explosions 101 | . . 3 . . 44 . . . . . . . 8 . . . . . . 46 Melee 14 | . . . . . . . . . . . . . . . . 14 . . . . Knockbacks 84 | . . . . . 11 . . . . . . . . 7 . . 3 17 1 45 Impact . | . . . . . . . . . . . . . . . . . . . . . Kinetic 78 | . . . . . 10 . . . . . . . . 7 . . 2 16 1 42 Secondary 6 | . . . . . 1 . . . . . . . . . . . 1 1 . 3 Self-Inflicted Damage 650 | . 39 40 . . . . . . . . . . 99 35 . . 30 . . 407 Shots 42 | . 1 3 . . . . . . . . . . 1 2 . . 3 . . 32 Rammed 7 | . . . . . 1 . . . . . . . 4 2 . . . . . . Targets Rammed 7 | . . . . . 1 . . . . . . . 4 2 . . . . . . Kicked . | . . . . . . . . . . . . . . . . . . . . . Crushed . | . . . . . . . . . . . . . . . . . . . . . Highest Temperature 577 | 63 100 265 . 143 380 114 238 266 234 168 278 247 340 324 . 372 359 391 189 577 Average Temperature 101 | 23 30 69 . 50 113 35 55 97 52 35 124 99 112 124 . 142 126 91 79 133 Received Heat Transfer 4325 | . 57 20 . 48 540 30 9 447 120 300 36 20 1071 553 . . 55 127 8 884 Effects 37 | . . . . . 1 . . . . . . 1 2 1 . . 4 3 . 25 Shutdowns 12 | . . . . . . . . . . . . . . . . . . 1 . 11 Energy Bleed 7 | . . . . . . . . . . . . 1 . 1 . . 1 2 . 2 Interference 14 | . . . . . 1 . . . . . . . 2 . . . 3 . . 8 Matter Decay 1 | . . . . . . . . . . . . . . . . . . . . 1 Short Circuit 2 | . . . . . . . . . . . . . . . . . . . . 2 Damage (minor) 1 | . . . . . . . . . . . . . . . . . . . . 1 Siege Activations 60 | . . . . . . . . . . . . 5 13 5 . 2 4 7 6 18 Total Turns 836 | . . . . . . . . . . . . 30 167 78 . 20 43 120 66 312 Longest Duration 43 | . . . . . . . . . . . . 14 21 30 . 11 15 39 19 43 Martial Activations . | . . . . . . . . . . . . . . . . . . . . . Shielding Activations . | . . . . . . . . . . . . . . . . . . . . . Robots Disrupted 4 | . . . . . . . . 2 . . . . . . . . . . . 2 Combat Hostiles 4 | . . . . . . . . 2 . . . . . . . . . . . 2 Robots Corrupted 34 | . . . . . . . . . . . . . 2 . . . . 4 . 28 Combat Hostiles 33 | . . . . . . . . . . . . . 1 . . . . 4 . 28 Parts Fried 78 | . . . . . . . . 4 . . . . 5 2 . . . 6 . 61 Impact Corruptions . | . . . . . . . . . . . . . . . . . . . . . Robots Melted 10 | . . 1 . . 1 . . . . . . . . . . . 3 2 . 3 Combat Hostiles 6 | . . 1 . . . . . . . . . . . . . . 2 1 . 2 Parts Melted 35 | 1 1 2 . 1 3 . . 4 . 1 . . . 4 . . 2 4 6 6 Heat Transferred 19028 | 777 888 851 . 888 3900 . . 124 . . 700 . 74 1926 . 518 2055 1554 1458 3315 Parts Sabotaged 4 | . . . . . . . . . . . . . 4 . . . . . . . Parts Stolen 4 | . . . . . . . . 4 . . . . . . . . . . . . Parts Stripped . | . . . . . . . . . . . . . . . . . . . . . Power Chain Reactions 11 | . . . . . 3 . . 3 . . . . . . . . . . . 5 Alert | -11 -10 -10 -10 -9 -8 -8 -8 -8 -6 -6 -6 -6 -6 -5 -4 -4 -3 -3 -2 -1 ------- Run | Yrd Mat Min Exi Min Mat Sto Rec Scr Fac Ext Cet Arc Hub Fac Fac DSF Res Tes Res Acc Maximum Alert Level 5 | . . . . . 2 1 . . . . . . 4 2 1 2 1 1 1 5 Low Security (%) 67 | 100 100 100 . 100 32 99 100 . 100 100 100 100 54 . . 49 48 51 92 15 Level 1 13 | . . . . . 44 . . . . . . . 11 . 100 19 51 48 7 13 Level 2 10 | . . . . . 23 . . . . . . . 15 100 . 30 . . . 12 Level 3 4 | . . . . . . . . . . . . . 12 . . . . . . 31 Level 4 1 | . . . . . . . . . . . . . 5 . . . . . . 13 Level 5 . | . . . . . . . . . . . . . . . . . . . . 3 High Security 1 | . . . . . . . . . . . . . . . . . . . . 10 Max Security . | . . . . . . . . . . . . . . . . . . . . . Sterilizations 1 | . . . . . . . . . . . . . . . . 1 . . . . Peak Influence 2268 | 10 88 39 . 25 556 233 89 . 81 174 89 95 1345 618 248 428 394 303 343 2268 Initial 618 | . . 16 . . . 233 16 . . 22 63 15 . 618 227 166 240 198 168 198 Average 227 | 2 26 . . 1 271 56 11 . 14 94 49 6 306 527 239 283 184 208 162 857 Influence Increases 12305 | 55 413 81 . 66 1220 546 345 . 184 792 206 190 1815 625 31 262 811 753 579 3331 Destroy 0b10 Robot/C 5700 | . 200 20 . 40 640 180 60 . 100 420 120 80 620 240 . 160 300 340 300 1880 Destroy 0b10 Robot/NC 790 | 55 50 10 . 25 110 65 45 . 25 50 10 25 110 20 . 20 30 25 10 105 Destroy Leader 1222 | . 50 10 . . 170 54 . . 30 76 . . 172 62 . 30 68 46 90 364 Allied During Kill 351 | . . . . . . 42 66 . . 113 49 25 32 . . 19 5 . . . Trap Triggered on 0b10 40 | . . . . . . . . . . . . . . 20 . . 10 . . 10 Successful Hack 331 | . 24 . . . 40 33 8 . 8 56 . . . 26 16 . 44 38 14 24 Select Force Hacks 350 | . . . . . 60 60 150 . . . . . . 50 . . 30 . . . Disable Machine 1425 | . 30 . . . 105 75 15 . . 30 15 45 570 135 . 15 30 150 45 165 Anti-Garrison Action 150 | . . . . . . . . . . . . . . . . . 150 . . . Destroy Structure 1376 | . 44 41 . 1 95 7 1 . 6 2 12 15 251 42 . 18 114 124 90 513 Partial Spotted 45 | . . . . . . . . . . . . . 15 . 15 . . . . 15 Lose Combat Pursuer 525 | . 15 . . . . 30 . . 15 45 . . 45 30 . . 30 30 30 255 Influence Decreases 10124 | 55 370 124 . 66 667 1057 387 . 138 724 281 229 552 1423 258 72 887 806 547 1481 Entered New Map 2033 | . . 27 . . . 320 26 . . 24 51 24 . 645 238 72 188 154 131 133 Time Decay 6541 | 55 370 77 . 66 627 567 361 . 138 570 180 205 392 568 20 . 589 632 386 738 Lost Part 1010 | . . 20 . . 40 . . . . 10 10 . 120 210 . . . 20 30 550 Lost Ally 390 | . . . . . . 20 . . . 120 40 . 40 . . . 110 . . 60 Purge Threat 150 | . . . . . . 150 . . . . . . . . . . . . . . Squads Dispatched 91 | . 1 . . . 7 5 . . 2 3 . . 15 8 . . 6 3 5 36 Investigation 15 | . . . . . 2 4 . . 1 2 . . . 1 . . 4 . . 1 Extermination 24 | . . . . . . . . . 1 . . . 4 3 . . . 3 4 9 Reinforcement 22 | . 1 . . . 2 . . . . 1 . . 8 3 . . 2 . 1 4 Assault 22 | . . . . . . . . . . . . . 2 1 . . . . . 19 Garrison 8 | . . . . . 3 1 . . . . . . 1 . . . . . . 3 Intercept . | . . . . . . . . . . . . . . . . . . . . . Searches Triggered . | . . . . . . . . . . . . . . . . . . . . . Construction Impeded 6 | . . . . . . . . . . . . . 2 3 . . . . . 1 Haulers Reinforced 3 | . . . . . . . . . . . . . 2 . . . . . . 1 Active Scanning Responses . | . . . . . . . . . . . . . . . . . . . . . Cargo Convoy Interrupts . | . . . . . . . . . . . . . . . . . . . . . Stealth | -11 -10 -10 -10 -9 -8 -8 -8 -8 -6 -6 -6 -6 -6 -5 -4 -4 -3 -3 -2 -1 --------- Run | Yrd Mat Min Exi Min Mat Sto Rec Scr Fac Ext Cet Arc Hub Fac Fac DSF Res Tes Res Acc Distress Signals 23 | . . . . . 2 2 . . . . . . 3 . . . 12 1 . 3 Communications Jammed 109 | . . . . . . . . . . . . . . . . . . 20 . 89 Distress Signals 108 | . . . . . . . . . . . . . . . . . . 20 . 88 Times Spotted 537 | . 19 18 . 3 47 30 2 46 8 21 10 11 72 26 . 9 31 24 21 139 Peak Tracking Total 18 | . 3 4 . 2 5 7 1 18 3 3 5 1 14 6 . 4 7 7 4 10 Tactical Retreats 38 | . 1 2 . 1 . 3 . 2 1 2 . . 8 2 . . 1 2 2 11 Traps | -11 -10 -10 -10 -9 -8 -8 -8 -8 -6 -6 -6 -6 -6 -5 -4 -4 -3 -3 -2 -1 ------- Run | Yrd Mat Min Exi Min Mat Sto Rec Scr Fac Ext Cet Arc Hub Fac Fac DSF Res Tes Res Acc Traps Triggered 13 | . . . . . 1 1 . . . . . . . 4 . 2 . 1 1 3 Indirectly 1 | . . . . . . . . . . . . . . . . . . . . 1 Trap Hack Attempts . | . . . . . . . . . . . . . . . . . . . . . Triggered . | . . . . . . . . . . . . . . . . . . . . . Disarmed . | . . . . . . . . . . . . . . . . . . . . . Reprogrammed . | . . . . . . . . . . . . . . . . . . . . . Reused 4 | . . . . . . . . . . . . . . 2 . . 1 . . 1 Traps Reconfigurated 20 | . . . . . . . . . . 2 . . 4 6 . . 4 . . 4 Traps Extracted . | . . . . . . . . . . . . . . . . . . . . . Installed . | . . . . . . . . . . . . . . . . . . . . . Triggered 4 | . . . . . . . . . . . . . . 2 . . 1 . . 1 Most Traps Carried 5 | . . 5 5 . . . . . . . . . . . . . . . . . Machines | -11 -10 -10 -10 -9 -8 -8 -8 -8 -6 -6 -6 -6 -6 -5 -4 -4 -3 -3 -2 -1 ---------- Run | Yrd Mat Min Exi Min Mat Sto Rec Scr Fac Ext Cet Arc Hub Fac Fac DSF Res Tes Res Acc Machines Disabled 100 | . 2 . . . 7 5 1 3 . 3 1 3 38 9 . 1 3 10 3 11 Max in Single Turn 19 | . 1 . . . 1 1 1 1 . 1 1 1 19 2 . . 1 1 1 2 Garrison Access 7 | . . . . . . 1 . . 1 . . . 1 . . . 1 1 . 2 Network Hub 2 | . . . . . . . . . . . . . 2 . . . . . . . Machines Repaired . | . . . . . . . . . . . . . . . . . . . . . Machines Dismantled . | . . . . . . . . . . . . . . . . . . . . . Machines Sabotaged . | . . . . . . . . . . . . . . . . . . . . . Overloaded Fab Kills 1 | . . . . . . . . . . . . . . 1 . . . . . . Hacking | -11 -10 -10 -10 -9 -8 -8 -8 -8 -6 -6 -6 -6 -6 -5 -4 -4 -3 -3 -2 -1 --------- Run | Yrd Mat Min Exi Min Mat Sto Rec Scr Fac Ext Cet Arc Hub Fac Fac DSF Res Tes Res Acc Machines Accessed 91 | . 7 . 2 . 8 12 13 1 3 12 1 . 4 2 2 . 5 7 3 9 Terminals 57 | . 7 . . . 4 8 6 . 2 11 1 . 3 . 2 . 2 6 2 3 Fabricators 4 | . . . . . . . . . . . . . . 1 . . 2 . . 1 Repair Stations 5 | . . . . . 2 1 . . . . . . . 1 . . . . . 1 Recycling Units 8 | . . . . . . 2 5 . . 1 . . . . . . . . . . Scanalyzers 4 | . . . . . 2 . . . . . . . . . . . 1 . . 1 Garrison Access 8 | . . . . . . 1 . . 1 . . . 1 . . . . 1 1 3 Total Hacks 296 | . 27 . 6 . 38 26 47 8 6 27 1 . 7 6 4 . 21 21 12 39 Successful 143 | . 16 . 6 . 33 14 35 8 2 7 . . 1 4 2 . 5 3 2 5 Failed 151 | . 9 . . . 5 12 12 . 4 20 1 . 6 2 2 . 16 18 10 34 Catastrophic 45 | . 3 . . . . 1 3 . 3 7 1 . . . . . 4 7 5 11 Database Lockouts 2 | . 2 . . . . . . . . . . . . . . . . . . . Manual 88 | . 16 . 1 . 16 6 20 . 2 1 . . . 3 . . 13 . 2 8 Terminals 183 | . 27 . . . 22 21 18 . 4 26 1 . 6 . 4 . 14 18 11 11 Fabricators 16 | . . . . . . . . . . . . . . 4 . . 6 . . 6 Repair Stations 11 | . . . . . 4 2 . . . . . . . 2 . . . . . 3 Recycling Units 8 | . . . . . . 2 5 . . 1 . . . . . . . . . . Scanalyzers 19 | . . . . . 12 . . . . . . . . . . . 1 . . 6 Garrison Access 21 | . . . . . . 1 . . 2 . . . 1 . . . . 3 1 13 Terminal Hacks 92 | . 10 . 6 . 14 10 27 8 1 6 . . 1 . 2 . 2 2 2 1 Record 43 | . 5 . 5 . 1 . 24 8 . . . . . . . . . . . . Part Schematic 2 | . . . . . . 2 . . . . . . . . . . . . . . Robot Analysis 6 | . 1 . . . 4 1 . . . . . . . . . . . . . . Prototype ID Bank 4 | . . . . . 1 2 1 . . . . . . . . . . . . . Open Door 3 | . . . . . . . . . . 3 . . . . . . . . . . Open DSF 1 | . . . . . . . . . . . . . . . 1 . . . . . Branch Access Points 3 | . . . . . 1 . . . 1 . . . . . 1 . . . . . Terminal Index 4 | . . . . . 1 . . . . 1 . . . . . . 1 . 1 . Repair Station Index 1 | . . . . . 1 . . . . . . . . . . . . . . . Alert Level 3 | . . . . . 1 . 1 . . . . . . . . . . . 1 . Unreport Threat 2 | . . . . . . 2 . . . . . . . . . . . . . . Locate Traps 8 | . 1 . . . 2 . . . . 2 . . . . . . 1 1 . 1 Maintenance Status 1 | . . . . . 1 . . . . . . . . . . . . . . . Hauler Manifests 3 | . 1 . . . 1 1 . . . . . . . . . . . . . . Registered Components 2 | . 1 . . . . 1 . . . . . . . . . . . . . . Zone Layout 5 | . 1 . . . . 1 1 . . . . . 1 . . . . 1 . . Proto ID Catalog 1 | . . . 1 . . . . . . . . . . . . . . . . . Fabricator Hacks 4 | . . . . . . . . . . . . . . 1 . . 2 . . 1 Network Status 3 | . . . . . . . . . . . . . . 1 . . 1 . . 1 Build 1 | . . . . . . . . . . . . . . . . . 1 . . . Repair Station Hacks 8 | . . . . . 4 1 . . . . . . . 2 . . . . . 1 Scan Component 5 | . . . . . 2 1 . . . . . . . 1 . . . . . 1 Repair 3 | . . . . . 2 . . . . . . . . 1 . . . . . . Recycling Unit Hacks 1 | . . . . . . . . . . 1 . . . . . . . . . . Retrieve Components 1 | . . . . . . . . . . 1 . . . . . . . . . . Scanalyzer 8 | . . . . . 8 . . . . . . . . . . . . . . . Insert Component 4 | . . . . . 4 . . . . . . . . . . . . . . . Analyze 4 | . . . . . 4 . . . . . . . . . . . . . . . Garrison Access Hacks 5 | . . . . . . 1 . . 1 . . . . . . . . 1 . 2 Seal Access 5 | . . . . . . 1 . . 1 . . . . . . . . 1 . 2 Unauthorized Hacks 25 | . 6 . . . 7 2 8 . . . . . . 1 . . 1 . . . Terminals 14 | . 6 . . . 5 . 3 . . . . . . . . . . . . . Botnet 4 | . 1 . . . 3 . . . . . . . . . . . . . . . Skim 10 | . 5 . . . 2 . 3 . . . . . . . . . . . . . Fabricators 1 | . . . . . . . . . . . . . . 1 . . . . . . Overload 1 | . . . . . . . . . . . . . . 1 . . . . . . Repair Stations . | . . . . . . . . . . . . . . . . . . . . . Recycling Units 7 | . . . . . . 2 5 . . . . . . . . . . . . . Tunnel 7 | . . . . . . 2 5 . . . . . . . . . . . . . Scanalyzers 3 | . . . . . 2 . . . . . . . . . . . 1 . . . Extract 3 | . . . . . 2 . . . . . . . . . . . 1 . . . Garrison Access . | . . . . . . . . . . . . . . . . . . . . . Data Cores Recovered 3 | . . . . . . . . . . 1 . . 1 . . . 1 . . . Used . | . . . . . . . . . . . . . . . . . . . . . Hacking Detections 69 | . 7 . . . 8 9 6 . 3 10 1 . 3 . 2 . 4 6 3 7 Full Trace Events 6 | . . . . . . 1 . . 1 2 . . . . . . 1 . . 1 Feedback Events 1 | . . . . . . . . . . 1 . . . . . . . . . . Corruption 1 | . . . . . . . . . . 1 . . . . . . . . . . Feedback Blocked . | . . . . . . . . . . . . . . . . . . . . . Robot Schematics Acquired . | . . . . . . . . . . . . . . . . . . . . . Robots Built 1 | . . . . . . . . . . . . . . . . . 1 . . . Authchips . | . . . . . . . . . . . . . . . . . . . . . Time 40 | . . . . . . . . . . . . . . . . . 40 . . . Total Robot Build Rating 1 | . . . . . . . . . . . . . . . . . 1 . . . Part Schematics Acquired 11 | . . . . . 8 2 . . . . . . . . . . 1 . . . Parts Built . | . . . . . . . . . . . . . . . . . . . . . Authchips . | . . . . . . . . . . . . . . . . . . . . . Time . | . . . . . . . . . . . . . . . . . . . . . Total Part Build Rating . | . . . . . . . . . . . . . . . . . . . . . Parts Repaired 3 | . . . . . 2 . . . . . . . . 1 . . . . . . Time 128 | . . . . . 91 . . . . . . . . 37 . . . . . . Parts Recycled . | . . . . . . . . . . . . . . . . . . . . . Recycled Matter . | . . . . . . . . . . . . . . . . . . . . . Retrieved Matter . | . . . . . . . . . . . . . . . . . . . . . Retrieved Components 10 | . . . . . . . . . . 10 . . . . . . . . . . Parts Scanalyzed 4 | . . . . . 4 . . . . . . . . . . . . . . . Part Schematics Acquired 4 | . . . . . 4 . . . . . . . . . . . . . . . Parts Damaged . | . . . . . . . . . . . . . . . . . . . . . Bothacking | -11 -10 -10 -10 -9 -8 -8 -8 -8 -6 -6 -6 -6 -6 -5 -4 -4 -3 -3 -2 -1 ------------ Run | Yrd Mat Min Exi Min Mat Sto Rec Scr Fac Ext Cet Arc Hub Fac Fac DSF Res Tes Res Acc Used RIF Installer . | . . . . . . . . . . . . . . . . . . . . . Robots Hacked . | . . . . . . . . . . . . . . . . . . . . . Non-combat . | . . . . . . . . . . . . . . . . . . . . . Combat . | . . . . . . . . . . . . . . . . . . . . . Robot Hacks Applied . | . . . . . . . . . . . . . . . . . . . . . Relay Couplers Released 4 | . . . . . . . . . . . . . 2 . . . 2 . . . Machine Destruction 4 | . . . . . . . . . . . . . 2 . . . 2 . . . Fabnet Peak Effective % . | . . . . . . . . . . . . . . . . . . . . . Robots Rewired 4 | . . . . . . . . . . 4 . . . . . . . . . . Allies Hacked . | . . . . . . . . . . . . . . . . . . . . . Hacks Repelled . | . . . . . . . . . . . . . . . . . . . . . Allies | -11 -10 -10 -10 -9 -8 -8 -8 -8 -6 -6 -6 -6 -6 -5 -4 -4 -3 -3 -2 -1 -------- Run | Yrd Mat Min Exi Min Mat Sto Rec Scr Fac Ext Cet Arc Hub Fac Fac DSF Res Tes Res Acc Total Allies 26 | . . . . 3 . 10 . 1 . 7 2 . 1 . . 1 1 . . . Largest Group 10 | . . . . 3 . 10 9 10 . 6 2 1 1 . . 1 1 . . . Highest-Rated Group 344 | . . . . 40 . 173 153 344 . 303 155 82 85 . . 142 142 . . . Highest-Rated Ally 191 | . . . . 16 . 29 29 191 . 159 82 82 85 . . 142 142 . . . Initial Warlord ECA Mod 33 | . . . . . . . . . . . . . . . . . 9 9 8 7 Total Orders 28 | . . . . . . 5 . 4 . . . . . . . . 2 . . 17 STAY 7 | . . . . . . 3 . 4 . . . . . . . . . . . . FOLLOW 2 | . . . . . . 2 . . . . . . . . . . . . . . PICKUP 1 | . . . . . . . . . . . . . . . . . 1 . . . EXPLORE 10 | . . . . . . . . . . . . . . . . . 1 . . 9 RETURN 8 | . . . . . . . . . . . . . . . . . . . . 8 Ally Attacks 324 | . . . . 2 . 27 2 134 . 92 29 7 10 . . 11 10 . . . Total Damage 10028 | . . . . . . 346 31 5095 . 1903 988 262 480 . . 394 529 . . . Kills 69 | . . . . . . 4 1 32 . 19 5 1 1 . . 4 2 . . . Allies Corrupted 2 | . . . . 1 . . . . . . . . 1 . . . . . . . Allies Melted . | . . . . . . . . . . . . . . . . . . . . . Field Lobotomies 5 | . . . . . . . . 1 . . 2 . 1 . . 1 . . . . Intel | -11 -10 -10 -10 -9 -8 -8 -8 -8 -6 -6 -6 -6 -6 -5 -4 -4 -3 -3 -2 -1 ------- Run | Yrd Mat Min Exi Min Mat Sto Rec Scr Fac Ext Cet Arc Hub Fac Fac DSF Res Tes Res Acc Active Infowar (turns) 27616 | 200 1561 87 . 468 222 3721 1907 2232 565 1768 361 3136 1326 533 38 283 2043 2201 905 4059 Optics 6744 | . . . . . . . . . 209 1768 361 3136 1270 . . . . . . . Sensors 9305 | . . . . . . . . . . . . . . 530 38 281 2035 2201 905 3315 IFF 424 | . . . . . . . . . . 387 37 . . . . . . . . . Terrain 2840 | . . . . . . . . . 447 110 1 . 461 . . . . . . 1821 Structural 267 | . . 17 . . . . . . . . . . . 3 . . . . . 247 Traps 8082 | . . . . . 222 3721 1907 2232 . . . . . . . . . . . . Seismic 3776 | 200 1561 70 . . . . . . 565 1380 . . . . . . . . . . Jamming 8397 | . . . . . . . . . . . . . . . . 53 1712 2154 905 3573 ECM 601 | . . . . 468 . . . . 1 . . . 132 . . . . . . . Robot Analysis Total 6 | . 1 . . . 4 1 . . . . . . . . . . . . . . Derelict Logs Recovered 3 | . . 2 . 1 . . . . . . . . . . . . . . . . Drone Launches 31 | . . . . . . . . . . . . . . . . . 10 . . 21 Drone Recoveries 15 | . . . . . . . . . . . . . . . . . . . . 15 Exploration | -11 -10 -10 -10 -9 -8 -8 -8 -8 -6 -6 -6 -6 -6 -5 -4 -4 -3 -3 -2 -1 ------------- Run | Yrd Mat Min Exi Min Mat Sto Rec Scr Fac Ext Cet Arc Hub Fac Fac DSF Res Tes Res Acc Turns Passed 35642 | 337 1561 1943 598 987 3258 3721 1907 2451 712 1768 361 3136 1339 1706 45 493 2043 2201 905 4170 Spaces Moved 13807 | 148 807 624 451 483 1023 1294 739 966 344 1040 159 396 476 618 81 239 903 897 352 1767 Core 517 | 4 . . . . . . . 67 7 . . 197 20 61 81 80 . . . . Treads 10956 | 144 443 516 . 128 971 1294 739 899 286 580 159 199 456 479 . 159 903 897 352 1352 Legs 77 | . . . . . . . . . . . . . . 77 . . . . . . Wheels 2257 | . 364 108 451 355 52 . . . 51 460 . . . 1 . . . . . 415 Hover . | . . . . . . . . . . . . . . . . . . . . . Flight . | . . . . . . . . . . . . . . . . . . . . . Fastest Speed 50 | 50 100 130 130 130 190 250 250 50 50 115 160 160 50 50 50 50 180 180 180 110 Average Speed 211 | 157 151 290 130 180 249 250 250 236 159 144 169 727 155 198 50 147 180 180 189 174 Slowest Speed 1800 | 160 320 480 130 320 490 330 250 250 170 170 250 1300 160 1800 50 180 180 270 270 245 Overloaded Moves . | . . . . . . . . . . . . . . . . . . . . . Propulsion Burnouts . | . . . . . . . . . . . . . . . . . . . . . Robots Hopped . | . . . . . . . . . . . . . . . . . . . . . Potential Cave-ins 1 | . . . . . . . . . . . . . . . . . . . . 1 Cave-ins Triggered . | . . . . . . . . . . . . . . . . . . . . . Exploration Rate (%) 63 | 7 98 97 90 79 74 97 96 59 9 96 83 98 68 7 3 94 36 85 9 47 Regions Visited 20 Branch Regions 11 Pre-discovered Areas 11 | . 1 1 1 . . 3 5 . . . . . . . . . . . . . Known Exits Taken 8 | . 1 . . . 1 . . . 1 . . . . 1 1 . 1 1 1 . Unknown Exits Taken 11 | 1 . 1 1 1 . 1 1 1 . 1 1 1 1 . . . . . . . Scrap Searched 4 | . . 1 . 1 . . . 2 . . . . . . . . . . . . Spaces Dug 181 | . 18 14 . . 25 7 . . 2 . . . 6 9 . . 25 31 10 34 Terrain Destroyed 956 | . 41 53 . 1 92 7 . 7 3 2 6 19 369 20 . 5 57 66 24 184 Melee 9 | . . . . . . 7 . . 2 . . . . . . . . . . . Projectile 438 | . 25 . . 1 61 . . . 1 2 6 19 59 20 . 5 57 66 23 93 AOE 463 | . 16 53 . . 31 . . 7 . . . . 310 . . . . . . 46 Terrain Rammed . | . . . . . . . . . . . . . . . . . . . . . Walls Destroyed . | . . . . . . . . . . . . . . . . . . . . . Machines Disabled . | . . . . . . . . . . . . . . . . . . . . . Actions | -11 -10 -10 -10 -9 -8 -8 -8 -8 -6 -6 -6 -6 -6 -5 -4 -4 -3 -3 -2 -1 --------- Run | Yrd Mat Min Exi Min Mat Sto Rec Scr Fac Ext Cet Arc Hub Fac Fac DSF Res Tes Res Acc Total 18262 | 193 990 700 467 548 1518 1705 783 1068 454 1209 220 613 879 984 84 333 1212 1343 527 2432 Wait 2201 | 5 57 23 . 34 254 276 14 4 31 22 10 191 251 216 . 28 179 265 103 238 Move 13787 | 147 806 623 450 482 1022 1293 738 965 343 1039 158 395 475 617 80 238 902 896 351 1767 Hop . | . . . . . . . . . . . . . . . . . . . . . Pick Up 206 | 6 24 11 5 1 30 12 2 3 11 7 2 3 4 11 1 11 12 10 5 35 Fast Attach 233 | 7 . 1 . 1 21 18 3 5 15 10 10 2 9 26 1 17 14 33 6 34 Attach 137 | . . 5 1 1 11 1 . 11 6 3 1 . 8 18 2 6 2 2 5 54 Detach 51 | . . . . . . . 3 1 1 2 . . 5 10 . 3 2 5 2 17 Swap 209 | . 25 5 1 5 20 18 . 12 5 10 7 . 15 3 . . 15 17 7 44 Drop 298 | . 12 3 10 1 46 35 5 11 9 14 15 4 12 9 . 8 25 35 11 33 Fire 1051 | 28 66 29 . 23 112 36 18 56 28 60 17 18 96 72 . 8 57 80 37 210 Melee 36 | . . . . . 1 16 . . 5 . . . . . . 14 . . . . Ram 1 | . . . . . . . . . . . . . . 1 . . . . . . Kick . | . . . . . . . . . . . . . . . . . . . . . Crush 6 | . . . . . 1 . . . . . . . 4 1 . . . . . . Escape Stasis . | . . . . . . . . . . . . . . . . . . . . . Rewire 42 | . . . . . . . . . . 42 . . . . . . . . . . Trap . | . . . . . . . . . . . . . . . . . . . . . Miscellaneous 4 | . . . . . . . . . . . . . . . . . 4 . . . Route ------- -11/Scrapyard -10/Materials (discovered 6 exits: *Mat x3 / *Min x2 / *Sub) -10/Mines (discovered 4 exits: *Mat x2 / *Exi / Sub) -10/Exiles (discovered 2 exits: [*Min x2]) -9/Mines -8/Materials (discovered 4 exits: *Fac x2 / *Sto x2) -8/Storage (discovered 2 exits: *Fac / *Rec) -8/Recycling (discovered 2 exits: *Fac / *Scr) -8/Scraptown -6/Factory (discovered 4 exits: Low x2 / *Ext x2) -6/Extension (discovered 2 exits: *Fac / *Cet) -6/Cetus (discovered 2 exits: *Fac / *Arc) -6/Archives (discovered 3 exits: *Fac / *Hub x2) -6/Hub_04(d) (discovered 3 exits: *Fac x3) -5/Factory -4/Factory (discovered 4 exits: Upp x2 / Arm / DSF) -4/DSF -3/Research (discovered 3 exits: *Res x2 / *Tes) -3/Testing -2/Research -1/Access History --------- Turn | Location | Event 7 | -11/Scrapyard | Discovered new exit (range 13) 338 | -11/Scrapyard | Entered Materials 339 | -10/Materials | Build established: Mutant 402 | -10/Materials | Discovered new exit (range 16) 485 | -10/Materials | Discovered new exit (range 8) 602 | -10/Materials | Discovered new exit (range 16) 678 | -10/Materials | Discovered new exit (range 3) 860 | -10/Materials | Discovered new exit (range 3) 918 | -10/Materials | Central database locked down 1057 | -10/Materials | Identified exit to Mines 1091 | -10/Materials | Identified exit to Materials 1095 | -10/Materials | Learned location of Subcaves (-10) 1338 | -10/Materials | Derelicts attacked the area 1597 | -10/Materials | Central database locked down 1622 | -10/Materials | Core integrity fell below 50% 1899 | -10/Materials | Entered Mines 1900 | -10/Mines | Assembled infested the area 1900 | -10/Mines | Identified exit to Subcaves 1905 | -10/Mines | Assisted by a Guerilla fighting off Assembled 1944 | -10/Mines | Met a Derelict bent on vengeance 1945 | -10/Mines | Received a Rocket Launcher from a helpful Derelict 2000 | -10/Mines | Lost 3 parts (2n1u) 2311 | -10/Mines | Found a hidden stash of uninstalled traps 2455 | -10/Mines | Learned location of Zion (-6) 3094 | -10/Mines | Learned location of 1 exit from Materials 3362 | -10/Mines | Deemed a non-threat by the Exiles lab entrance 3362 | -10/Mines | Discovered new exit (range 5) 3842 | -10/Mines | Entered Exiles 3875 | -10/Exiles | Met 8R-AWN 3883 | -10/Exiles | Discovered new exit (range 14) 3928 | -10/Exiles | Met EX-HEX 3967 | -10/Exiles | Met EX-BIN 3983 | -10/Exiles | Aligned with FarCom system 3984 | -10/Exiles | Given EX-Vault access code 4014 | -10/Exiles | Opened EX-Vault 4027 | -10/Exiles | Found Field Lobotomy Kit 4031 | -10/Exiles | Found Army-in-a-Box 4038 | -10/Exiles | Found Trap Reconfigurator 4072 | -10/Exiles | Warned to stay clear of 0b10 Research branches 4110 | -10/Exiles | Met EX-DEC 4232 | -10/Exiles | Visited The Gauntlet 4423 | -10/Exiles | Discovered new exit (range 14) 4440 | -10/Exiles | Stole three prototypes: Trap Reconfigurator, Army-in-a-Box, Field Lobotomy Kit 4440 | -10/Exiles | Entered Mines 4506 | -9/Mines | Discovered new exit (range 11) 4869 | -9/Mines | Assisted by bots powering up and referring to "LRC-V3" 4893 | -9/Mines | Learned Materials emergency access door positions 4906 | -9/Mines | Excavation squad dispatched 4906 | -9/Mines | A large section of the Mines collapsed 4936 | -9/Mines | YI-UF0 nonchalantly dropped a Grenade Launcher on the ground 4966 | -9/Mines | Core integrity fell below 20% 4968 | -9/Mines | Destroyed YI-UF0 5427 | -9/Mines | Entered Materials 5427 | -8/Materials | Evolved 4 slots: Propulsion x1, Utility x2, Weapon x1 5428 | -8/Materials | Identified exit to Storage 5429 | -8/Materials | Identified exit to Factory 5756 | -8/Materials | Build established: Skirmisher 6126 | -8/Materials | Garrison activated, responded to threat 7530 | -8/Materials | Repaired Broken Arm. Treads 7663 | -8/Materials | Discovered exit to Factory (range 16) 8409 | -8/Materials | Repaired Arm. Treads 8598 | -8/Materials | Build established: Mutant 8685 | -8/Materials | Entered Storage 8687 | -8/Storage | FarCom data flow suspended 8966 | -8/Storage | Met 01-MTF 9042 | -8/Storage | Garrison activated, responded to threat 9187 | -8/Storage | Assisted by bots powering up and referring to "LRC-V3" 9347 | -8/Storage | Discovered exit to Factory (range 7) 9527 | -8/Storage | Build established: Commander-Mutant 9928 | -8/Storage | Build established: Commander-Tank 10610 | -8/Storage | Learned location of Armory (-4) 10938 | -8/Storage | Build established: Commander-Mutant 11142 | -8/Storage | Discovered new exit (range 8) 11639 | -8/Storage | Build established: Commander-Tank 11900 | -8/Storage | Found Prototype Energy Gun 11900 | -8/Storage | Identified 01-MTF's Shockpuncher 12289 | -8/Storage | Destroyed 01-MTF 12406 | -8/Storage | Entered Recycling 12406 | -8/Recycling | Accompanied by 9 allies 12779 | -8/Recycling | Discovered new exit (range 14) 13032 | -8/Recycling | Scanned before Scraplab entrance 14151 | -8/Recycling | Entered Scraplab 14174 | -8/Recycling | Discovered new exit (range 2) 14313 | -8/Recycling | Entered Scraptown 14313 | -8/Scraptown | Accompanied by 9 allies 14313 | -8/Scraptown | System corruption cleaned by C-Scrubber 14805 | -8/Scraptown | Heard Great Nut preacher, LISTEN AND RECITE! 15062 | -8/Scraptown | Discovered new exit (range 5) 15287 | -8/Scraptown | Visited TADAMA 15370 | -8/Scraptown | Visited Observation Area 15942 | -8/Scraptown | Visited Assassins FH 15990 | -8/Scraptown | Visited Junk Repository 16095 | -8/Scraptown | Visited SPCMW 16165 | -8/Scraptown | Visited IN-MT5's Study 16215 | -8/Scraptown | Visited Cave Peace 16470 | -8/Scraptown | Assimilated Triborg with FLK Orb 16471 | -8/Scraptown | Attacked by Scraptown defenders 16551 | -8/Scraptown | Lost 8 allies 16637 | -8/Scraptown | Destroyed 7 combat bots 16687 | -8/Scraptown | Core integrity fell below 50% 16696 | -8/Scraptown | Lost 9 parts (1p3n2u3w) 16745 | -8/Scraptown | Core integrity fell below 20% 16764 | -8/Scraptown | System corruption cleaned by C-Scrubber 16764 | -8/Scraptown | Entered Factory 16764 | -6/Factory | Evolved 4 slots: Propulsion x1, Utility x3 16772 | -6/Factory | Lost 7 parts (1n2u4w) 17111 | -6/Factory | Identified exit to Lower Caves 17111 | -6/Factory | Identified exit to Extension 17247 | -6/Factory | Found Launcher Loader 17476 | -6/Factory | Entered Extension 17483 | -6/Extension | Disrupted transfer network 17544 | -6/Extension | Rescued A7 17822 | -6/Extension | Rescued a captive Derelict 17879 | -6/Extension | Build established: Scavenger-Tank 18199 | -6/Extension | Spotted B-75 Beast 18216 | -6/Extension | Destroyed B-75 Beast 18227 | -6/Extension | Spotted B-75 Beast 18262 | -6/Extension | Allies destroyed B-75 Beast 18300 | -6/Extension | Extracted ID and sensor layout for unrecognized location from A7's data core 18689 | -6/Extension | Rescued a captive Derelict 18855 | -6/Extension | Discovered new exit (range 10) 18858 | -6/Extension | Discovered new exit (range 6) 19244 | -6/Extension | Entered Cetus 19244 | -6/Cetus | Accompanied by 1 ally 19263 | -6/Cetus | Spotted Cetus Guard 19263 | -6/Cetus | Spotted Cetus Guard 19263 | -6/Cetus | Spotted Cetus Guard 19263 | -6/Cetus | Spotted Cetus Guard 19287 | -6/Cetus | Assimilated Cetus Guard with FLK Orb 19290 | -6/Cetus | Assimilated Cetus Guard with FLK Orb 19292 | -6/Cetus | Allies destroyed Cetus Guard 19295 | -6/Cetus | Allies destroyed Cetus Guard 19426 | -6/Cetus | Discovered new exit (range 21) 19465 | -6/Cetus | Spotted Cetus Guard 19465 | -6/Cetus | Spotted Cetus Guard 19465 | -6/Cetus | Spotted Cetus Guard 19465 | -6/Cetus | Spotted Cetus Guard 19487 | -6/Cetus | Allies destroyed Cetus Guard 19489 | -6/Cetus | Discovered new exit (range 21) 19498 | -6/Cetus | Allies destroyed Cetus Guard 19501 | -6/Cetus | Destroyed Cetus Guard 19504 | -6/Cetus | Destroyed Cetus Guard 19524 | -6/Cetus | Met Revision 17 19605 | -6/Cetus | Entered Archives 19605 | -6/Archives | Accompanied by 1 ally 19801 | -6/Archives | Discovered new exit (range 22) 19809 | -6/Archives | Unable to access archive contents 19897 | -6/Archives | Discovered new exit (range 15) 19953 | -6/Archives | Discovered new exit (range 22) 22741 | -6/Archives | Entered Hub_04(d) 22741 | -6/Hub_04(d) | Accompanied by 1 ally 22956 | -6/Hub_04(d) | Discovered new exit (range 22) 22999 | -6/Hub_04(d) | Discovered new exit (range 21) 23547 | -6/Hub_04(d) | Garrison activated, responded to threat 23950 | -6/Hub_04(d) | Spotted B-75 Beast 24011 | -6/Hub_04(d) | Network Hub disabled 24011 | -6/Hub_04(d) | Network Hub disabled 24023 | -6/Hub_04(d) | Assimilated B-75 Beast with FLK Orb 24033 | -6/Hub_04(d) | Spotted Lightning 24033 | -6/Hub_04(d) | Spotted Lightning 24034 | -6/Hub_04(d) | Spotted Lightning 24046 | -6/Hub_04(d) | Disrupted transfer network 24071 | -6/Hub_04(d) | Core integrity fell below 50% 24071 | -6/Hub_04(d) | System corruption reached 10% 24071 | -6/Hub_04(d) | Discovered new exit (range 11) 24080 | -6/Hub_04(d) | Entered Factory 24080 | -5/Factory | Evolved 2 slots: Power x1, Utility x1 24103 | -5/Factory | Lost 7 parts (1p2n3u1w) 24190 | -5/Factory | Repaired Quantum Reactor 24196 | -5/Factory | Discovered new exit (range 10) 24622 | -5/Factory | Build established: Mutant 25143 | -5/Factory | Identified exit to Factory 25261 | -5/Factory | System corruption reached 10% 25436 | -5/Factory | Lost 4 parts (1n1u2w) 25580 | -5/Factory | First assault squad dispatched 25739 | -5/Factory | Core integrity fell below 50% 25739 | -5/Factory | System corruption reached 30% 25781 | -5/Factory | Lost 13 parts (2p4n6u1w) 25786 | -5/Factory | Entered another Factory area 25786 | -4/Factory | Evolved 2 slots: Utility x2 25799 | -4/Factory | Identified exit to Upper Caves 25799 | -4/Factory | Identified exit to Armory 25831 | -4/Factory | Identified exit to DSF 25831 | -4/Factory | Entered DSF 25840 | -4/DSF | Assimilated H-71 Marshal with FLK Orb 25852 | -4/DSF | Additional patrols routed to DSF 25858 | -4/DSF | Discovered new exit (range 16) 25862 | -4/DSF | Found Unknown Launcher 25964 | -4/DSF | Identified Gamma Bomb Array 26250 | -4/DSF | Sterilization system engaged 26270 | -4/DSF | Ambient heat levels rising (+10) 26280 | -4/DSF | Found Gamma Bomb Array 26285 | -4/DSF | Ambient heat levels rising (+10) 26300 | -4/DSF | Ambient heat levels rising (+10) 26315 | -4/DSF | Ambient heat levels rising (+10) 26321 | -4/DSF | Identified exit to Research 26324 | -4/DSF | Entered Research 26324 | -3/Research | Accompanied by 1 ally 26324 | -3/Research | Evolved 2 slots: Propulsion x2 26410 | -3/Research | Build established: Tank 26524 | -3/Research | Revision forces began assault on 0b10 26603 | -3/Research | Discovered new exit (range 15) 26614 | -3/Research | Met up with Revision 17++ 26687 | -3/Research | Identified exit to Research 26807 | -3/Research | Build established: Scavenger-Tank 27024 | -3/Research | Research terminal network offline 27133 | -3/Research | Fabricated A-02 Transporter? 27345 | -3/Research | Discovered exit to Research (range 15) 27571 | -3/Research | Spotted Striker 27610 | -3/Research | Lost 3 allies 27675 | -3/Research | Spotted Striker 27688 | -3/Research | Destroyed Striker 27928 | -3/Research | Spotted Striker 27935 | -3/Research | Spotted Striker 27945 | -3/Research | Destroyed Striker 27948 | -3/Research | Destroyed Striker 28092 | -3/Research | Discovered new exit (range 8) 28105 | -3/Research | Identified exit to Testing 28219 | -3/Research | Found Prototype Launcher 28220 | -3/Research | Identified Com. Tesla Bomb Launcher 28367 | -3/Research | Entered Testing 28438 | -3/Testing | Found Prototype Launcher 28438 | -3/Testing | Identified Tesla Bomb Launcher 28526 | -3/Testing | Found Prototype Energy Gun 28526 | -3/Testing | Identified Warp Gun 28758 | -3/Testing | Found Prototype Device 28758 | -3/Testing | Identified Exp. Hardlight Generator 28817 | -3/Testing | Found Prototype Device 28817 | -3/Testing | Identified Exp. EM Disruption Field 29256 | -3/Testing | Found Prototype Device 29256 | -3/Testing | Identified Exp. Thermal Defense Suite 29379 | -3/Testing | Spotted PL-QP2E4B3GQ8 29412 | -3/Testing | Destroyed PL-QP2E4B3GQ8 29481 | -3/Testing | Found Prototype Energy Cannon 29481 | -3/Testing | Identified Null Cannon 29557 | -3/Testing | Discovered exit to Research (range 12) 29715 | -3/Testing | Found Prototype Hackware 30165 | -3/Testing | System corruption reached 10% 30212 | -3/Testing | Found Prototype Ballistic Cannon 30212 | -3/Testing | Identified Perforator 30309 | -3/Testing | Found Prototype Energy Gun 30309 | -3/Testing | Identified Tachyon Dispersion Ray 30568 | -3/Testing | Entered Research 30568 | -2/Research | Evolved 2 slots: Power x1, Utility x1 30603 | -2/Research | Identified Ghost Barrier 30913 | -2/Research | Build established: Hacker-Tank 31113 | -2/Research | Discovered new exit (range 13) 31144 | -2/Research | Identified exit to Access 31416 | -2/Research | System corruption reached 10% 31449 | -2/Research | Destroyed 7 combat bots 31473 | -2/Research | Entered Access 31473 | -1/Access | Evolved 2 slots: Utility x1, Weapon x1 31881 | -1/Access | Destroyed 7 combat bots 32182 | -1/Access | Lost 3 parts (1p1n1w) 32340 | -1/Access | Lost 4 parts (1p2n1w) 32360 | -1/Access | Destroyed 7 combat bots 32820 | -1/Access | Destroyed 7 combat bots 32914 | -1/Access | Lost 4 parts (1p1n1u1w) 32968 | -1/Access | Garrison activated, responded to threat 33009 | -1/Access | Lost 4 parts (2n2w) 33693 | -1/Access | Build established: Scavenger-Skirmisher 33973 | -1/Access | First assault squad dispatched 34168 | -1/Access | System corruption reached 10% 34465 | -1/Access | Build established: Hacker-Skirmisher 35125 | -1/Access | Build established: Hacker-Tank 35130 | -1/Access | Destroyed 9 combat bots 35219 | -1/Access | High security lockdown imminent 35299 | -1/Access | High security lockdown engaged 35402 | -1/Access | Lost 3 parts (1p2u) 35446 | -1/Access | Spotted B-99 Colossus 35529 | -1/Access | Core integrity fell below 50% 35583 | -1/Access | Lost 16 parts (2p4n4u6w) 35619 | -1/Access | Spotted B-99 Colossus 35620 | -1/Access | Spotted B-99 Colossus 35634 | -1/Access | Core integrity fell below 20% 35643 | -1/Access | Destroyed by B-99 Colossus with Linear Accelerator Last Messages --------------- 35636_ Slug penetrates Wall. 35638_ Penetrated by Slug. 35638_ Slug penetrates Wall. 35638_ Penetrated by Slug. 35638_ Slug penetrates Wall. 35638_ Penetrated by Slug. 35639_ Wall collapses. 35639_ Biometal Medium Treads destroyed. 35639_ Penetrated by Slug. 35639_ Cld. Plasma Rifle destroyed. 35639_ Penetrated by Slug. 35640_ M-36 Artificer repairs G-73 Enforcer. 35641_ Penetrated by Slug. 35641_ Slug penetrates G-73 Enforcer. 35641_ Penetrated by Slug. 35641_ Centrium Wheel destroyed. 35641_ Penetrated by Slug. 35641_ Slug penetrates G-73 Enforcer. 35642_ G-73 Enforcer destroyed. 35643_ M-36 Artificer repairs G-73 Enforcer. Map ----- +----------------------------------------------------+ | ??# !! ###????????????????????????# " + | | ??# #??????????????????????????# """ # | | ??# #??????????????????????????# """ # | | ??# #??????????????????????????# " " | | ??# #??????????????????????????# " | | ??# #??????????????????????????# " | | ??# #????????????????????????### ###### | | ??# #????????????????????????# # ## | | ??# #????????????????????????## ## | | ??# #????????????????????????# ## | | ??# #????????????????????????# ## | | ### #????????????????????????# # ] # | | #"# #???????????????????????# ## + | | # #???????????????????????## # | | # #????????????????????????# # | | =%# % #??????????""????????????# # ## | | + ! #??????????" ????????????### ##### | | * # "#?????#""""" """"#?????????#######???? | | ==## ""#?????# #???????????????????? | | %!"# ""#?????# BB BB #???????????????????? | | == # ""#?????# BB BB #???????????????????? | | % %# ""#?????# #???????????????????? | | % T"#?????# #???????????????????? | | #" " ""#?????# % #???????????????????? | | ""#?????# #???????????????????? | | ""#???????#; @;;;###########?????????? | | ### ""#??????# # ; % #?????????? | | ??# "#????????# % ; #?????????? | | ??# #????????# = % #?????????? | | ??# #????????# [%!; ** #?????????? | | ??? #????????# = ; ** #?????????? | | ???## # #????????# gg # * #?????????? | | ????? # #????????#g%l # ] #?????????? | | ?????### #????????#mgg # ]#?????????? | | ???????# ########## b # #?????????? | | ???????# % # #?????????? | | ???????# % # #?????????? | | ######## # #?????????? | | ####;#;######??????????? | | #####/###"####"###+####+;#########???????????????? | | ??# # % #????????????????? | | ??# # #????????????????? | | ??# # #????????????????? | | ??# # ! #????????????????? | | ??# # #????????????????? | | ??# # #????????????????? | | ??###############################????????????????? | | | | | | | +----------------------------------------------------+ Best States ------------- Heat Dissipation 142 Coolant Potential 80 Energy Generation 65 Energy Capacity 1430 Matter Stores 550 Matter Capacity 550 Sight Range 22 Robot Scan Range 18 Terrain Scan Range 20 Terrain Scan Density 210 ECM Strength 2 Jamming Range 16 Power Amplification 20 Additional Mass Support 20 Base Temperature (-) 100 Corruption Block 19 Armor Coverage 1350 Resistance: TH 30 Resistance: EX 25 Resistance: EM 25 Phase Shifting 5 Evasion (%) 50 Targeting Accuracy 8 Target Analysis 6 Core Analysis 6 Recoil Reduction 6 Energy Filtering 30 Offensive Hacking 10 Defensive Hacking 20 Item Schematics ----------------- Hvy. Particle Gun | -8/Materials | Extracted Missile Launcher | -8/Materials | Extracted Arm. Treads | -8/Materials | Scanalyzed ECM Suite | -8/Materials | Scanalyzed Structural Scanner | -8/Materials | Scanalyzed Seismic Detector | -8/Materials | Scanalyzed Core Shielding | -8/Materials | Extracted Imp. VTOL Module | -8/Materials | Extracted Adv. ECM Suite | -8/Storage | Hacked IFF Parser | -8/Storage | Hacked Adv. Myomer Leg | -3/Research | Extracted Robot Schematics ------------------ None Fabricated ------------ A-02 Transporter | x1 | -3/Research | Preloaded Repaired ---------- Arm. Treads | 77% | -8/Materials | Broken Arm. Treads | 49% | -8/Materials Quantum Reactor | 28% | -5/Factory Alien Tech Used ----------------- None Achievements -------------- Ride The Lightning Challenges ------------ None Game ------ Seed SmartContainmentShield Manual? 0 Play Time 05:17:27 Cumulative 239.2 hours Start 2025.05.12 @ 21:06:38 End 2025.05.13 @ 23:52:57 Sessions 3 Manual Loads 0 Difficulty Rogue Special Mode None Game No. 115 Rogue 115 Adventurer 0 Explorer 0 Win Type - Total 0 Types 0/0/0/0/0/0/0/0/0/0 Lore% 56 Gallery% 70 Achievement% 61 Wizard Run 0 Options --------- Layout 0 ASCII 0 Keyboard 0 Movement Mouse Keybinds 0 Fullscreen 1 Font 24/Smallcaps Map View 183x50 Zoom Use 0% Tactical HUD 1 Map Filters NONE Filters NONE Steam 0 RUN: 186eebf2-0a6d-4860-aae4-3a83eaf549e8